bitfinex/quotes_SOLUSD_20250401
["timestamp","ask_amount","ask_price","bid_price","bid_amount"]
[1743538335487,0.063,126.15,126.14,34.7876]
[1743538336091,0.063,126.15,126.14,6.86]
[1743538336795,0.063,126.15,126.12,7.9286]
[1743538337778,15.74965395,126.15,126.11,7.9292]
[1743538339596,0.063,126.15,126.11,7.9292]
[1743538341194,0.063,126.15,126.14,20.0]
[1743538341396,0.063,126.15,126.14,26.86]
[1743538341690,0.063,126.15,126.14,32.7876]
[1743538342196,0.063,126.17,126.15,18.79181043]
[1743538342388,0.063,126.19,126.15,18.79181043]
[1743538342600,0.0001,126.19,126.16,0.14216157]
[1743538342778,0.0001,126.19,126.16,81.04206157]
[1743538342979,0.063,126.21,126.16,81.04206157]
[1743538343198,0.063,126.21,126.18,0.14216157]
[1743538343385,0.063,126.21,126.19,235.36216157]
[1743538343689,0.063,126.21,126.2,7.9239]
[1743538343996,0.063,126.24,126.22,0.14216157]
[1743538344201,0.063,126.24,126.23,26.88]
[1743538345086,0.063,126.24,126.23,45.67181043]
[1743538345285,0.063,126.24,126.23,26.88]
[1743538345807,0.063,126.24,126.23,20.0]
[1743538347716,0.063,126.24,126.23,27.922]
[1743538349336,0.063,126.24,126.23,20.0]
[1743538350417,0.063,126.24,126.23,27.922]
[1743538359347,0.063,126.24,126.23,28.06416157]
[1743538359527,0.063,126.24,126.23,46.71381043]
[1743538359727,0.0001,126.24,126.23,46.855972]
[1743538360126,0.063,126.25,126.24,0.14216157]
[1743538360443,0.0001,126.25,126.24,0.14216157]
[1743538361143,0.063,126.38,126.36,20.0]
[1743538361444,23.143,126.37,126.36,27.02]
[1743538362734,0.063,126.38,126.37,18.79181043]
[1743538362961,0.063,126.38,126.37,7.9132]
[1743538363124,0.063,126.38,126.37,14.9532]
[1743538373773,0.063,126.39,126.37,14.9532]
[1743538379880,0.063,126.39,126.37,15.0162]
[1743538384659,0.063,126.39,126.37,7.9762]
[1743538398204,15.69057492,126.39,126.37,0.063]
[1743538398893,0.063,126.39,126.37,0.063]
[1743538405301,15.69057492,126.39,126.37,0.063]
[1743538406911,0.063,126.39,126.37,0.063]
[1743538417588,0.063,126.39,126.38,20.0]
[1743538417804,0.063,126.39,126.38,26.86]
[1743538418412,0.063,126.39,126.38,34.7726]
[1743538421706,0.063,126.39,126.38,53.706572]
[1743538421916,0.063,126.39,126.38,53.42224886]
[1743538423092,0.063,126.39,126.38,34.7726]
[1743538425099,0.063,126.39,126.37,227.943]
[1743538427722,0.063,126.39,126.37,0.063]
[1743538431029,15.69057492,126.39,126.37,0.063]
[1743538432945,23.60267492,126.39,126.37,0.063]
[1743538435627,21.60267492,126.39,126.37,0.063]
[1743538435921,21.63267492,126.39,126.37,0.063]
[1743538436138,15.62757492,126.38,126.37,0.063]
[1743538437126,21.63267492,126.39,126.37,0.063]
[1743538439544,15.62757492,126.38,126.37,0.063]
[1743538441332,21.63267492,126.39,126.37,0.063]
[1743538450052,0.03,126.39,126.37,0.063]
[1743538450232,0.03,126.39,126.37,20.063]
[1743538450545,0.03,126.39,126.37,26.963]
[1743538451513,0.03,126.39,126.38,7.9126]
[1743538455640,0.03,126.39,126.38,26.56224886]
[1743538461558,0.03,126.39,126.38,26.62524886]
[1743538469873,0.03,126.39,126.38,26.909572]
[1743538477566,0.03,126.39,126.38,254.729572]
[1743538482172,15.62757492,126.46,126.41,20.0]
[1743538482467,80.7,126.47,126.41,26.84]
[1743538482674,80.7,126.47,126.42,7.9101]
[1743538483478,1.6064,126.48,126.42,7.9101]
[1743538485479,9.5128,126.48,126.42,7.9101]
[1743538486159,9.5428,126.48,126.42,7.9101]
[1743538489379,1.6364,126.48,126.44,7.9088]
[1743538489766,9.5429,126.48,126.43,7.9091]
[1743538489957,25.17047492,126.48,126.43,7.9091]
[1743538490257,25.17047492,126.48,126.41,20.0]
[1743538490258,96.32757492,126.47,126.41,20.0]
[1743538491378,7.9076,126.46,126.41,27.9104]
[1743538492265,7.9073,126.47,126.41,27.9104]
[1743538493961,7.9073,126.47,126.42,6.86]
[1743538494380,23.53487492,126.47,126.42,6.86]
[1743538497288,23.53487492,126.47,126.42,14.77]
[1743538502587,7.9073,126.47,126.42,14.77]
[1743538502993,1.6364,126.48,126.43,18.64964886]
[1743538503375,9.5428,126.48,126.43,18.64964886]
[1743538504091,1.6364,126.48,126.43,18.64964886]
[1743538504487,0.03,126.48,126.43,18.64964886]
[1743538504873,0.03,126.48,126.46,20.0]
[1743538505074,0.03,126.48,126.47,7.907]
[1743538507404,0.03,126.48,126.47,26.55664886]
[1743538510584,0.03,126.48,126.47,26.840972]
[1743538510903,0.063,126.51,126.5,20.0]
[1743538511103,0.063,126.51,126.5,26.84]
[1743538512797,0.063,126.51,126.5,34.7451]
[1743538514398,0.063,126.51,126.5,53.39474886]
[1743538516223,0.063,126.51,126.5,53.679072]
[1743538521240,0.0001,126.51,126.5,53.679072]
[1743538521436,0.0001,126.51,126.5,134.578972]
[1743538522539,0.0431,126.52,126.5,134.578972]
[1743538522740,0.0431,126.52,126.51,0.28432314]
[1743538523417,1.6639,126.58,126.54,20.0]
[1743538523735,1.6639,126.58,126.54,26.84]
[1743538524750,1.6639,126.58,126.55,46.30664886]
[1743538525035,1.6639,126.58,126.57,20.0]
[1743538525206,0.03,126.6,126.57,20.0]
[1743538526028,0.03,126.6,126.58,26.84]
[1743538526325,0.03,126.6,126.59,18.64964886]
[1743538526632,0.03,126.6,126.59,254.453472]
[1743538527131,0.0001,126.6,126.59,254.453472]
[1743538527733,0.0001,126.6,126.59,260.82551811]
[1743538528028,0.0001,126.6,126.59,341.72541811]
[1743538528627,0.0101,126.61,126.59,341.72541811]
[1743538529011,0.03,126.64,126.62,20.0]
[1743538529325,0.03,126.64,126.63,25.793972]
[1743538530117,0.03,126.64,126.63,45.793972]
[1743538530318,0.03,126.71,126.67,18.64964886]
[1743538530515,0.03,126.71,126.69,18.64964886]
[1743538530827,0.03,126.71,126.69,246.18964886]
[1743538531426,0.03,126.71,126.7,6.92]
[1743538532128,0.03,126.71,126.7,25.56964886]
[1743538532328,0.03,126.71,126.7,106.753872]
[1743538535137,0.03,126.71,126.7,106.46954886]
[1743538535748,0.03,126.71,126.69,234.64]
[1743538536543,0.03,126.71,126.69,227.54]
[1743538537648,6.4302,126.71,126.64,80.8999]
[1743538537940,22.05777492,126.71,126.65,25.76964886]
[1743538539119,7.8926,126.7,126.65,7.12]
[1743538539323,1.5559,126.69,126.65,7.12]
[1743538541339,9.4493,126.69,126.65,7.12]
[1743538541721,1.5559,126.69,126.65,7.12]
[1743538544147,9.4492,126.69,126.65,7.12]
[1743538544446,1.5559,126.69,126.65,7.12]
[1743538548936,17.18347492,126.69,126.65,7.12]
[1743538549138,15.62757492,126.68,126.65,7.12]
[1743538549347,15.62757492,126.67,126.64,0.063]
[1743538549952,15.62757492,126.66,126.64,0.063]
[1743538550849,23.52287492,126.66,126.64,0.063]
[1743538551045,21.78497492,126.65,126.64,0.063]
[1743538551249,23.42057492,126.65,126.64,0.063]
[1743538553142,31.31627492,126.65,126.64,0.063]
[1743538553339,31.31627492,126.65,126.57,7.08]
[1743538553340,132.03999806,126.65,126.57,7.08]
[1743538553546,15.62757492,126.62,126.57,7.08]
[1743538554361,23.52547492,126.62,126.56,26.55074886]
[1743538554562,23.52547492,126.62,126.56,33.63074886]
[1743538555664,23.52547492,126.62,126.56,26.55074886]
[1743538557061,15.62757492,126.62,126.56,26.55074886]
[1743538557645,15.62757492,126.62,126.56,26.61374886]
[1743538558978,23.52517492,126.62,126.56,26.61374886]
[1743538559948,15.62757492,126.62,126.56,26.61374886]
[1743538560151,15.62757492,126.62,126.56,46.36714886]
[1743538560348,23.52477492,126.63,126.56,46.36714886]
[1743538560560,15.62757492,126.63,126.56,46.36714886]
[1743538560876,23.52457492,126.63,126.56,46.36714886]
[1743538561178,15.62757492,126.63,126.56,46.36714886]
[1743538561567,23.52467492,126.63,126.56,46.36714886]
[1743538562674,15.62757492,126.62,126.56,46.36714886]
[1743538564059,23.52517492,126.62,126.56,46.36714886]
[1743538565048,15.62757492,126.62,126.56,46.36714886]
[1743538565976,23.52487492,126.63,126.56,46.36714886]
[1743538567088,1.5276,126.6,126.56,7.9641]
[1743538568274,17.15517492,126.6,126.56,7.9641]
[1743538568877,15.62757492,126.58,126.56,0.063]
[1743538569777,15.62757492,126.57,126.56,0.063]
[1743538571644,7.9752,126.6,126.56,0.063]
[1743538571880,31.50167492,126.6,126.56,0.063]
[1743538572180,15.62757492,126.59,126.56,0.063]
[1743538572674,23.60277492,126.6,126.56,0.063]
[1743538572857,15.62757492,126.59,126.56,0.063]
[1743538573674,15.62757492,126.59,126.56,7.9643]
[1743538576686,15.62757492,126.58,126.56,0.063]
[1743538576974,15.62757492,126.57,126.56,0.063]
[1743538578177,15.62757492,126.58,126.56,0.063]
[1743538578856,15.62757492,126.57,126.56,0.063]
[1743538580561,23.52827492,126.57,126.56,0.063]
[1743538580968,25.17527492,126.57,126.56,0.063]
[1743538581368,25.45959806,126.57,126.56,0.063]
[1743538581986,70.45974692,126.57,126.51,0.063]
[1743538582178,15.62757492,126.52,126.51,0.063]
[1743538582558,17.22427492,126.52,126.51,0.063]
[1743538583567,25.12807492,126.52,126.51,0.063]
[1743538584278,32.01099806,126.52,126.51,0.063]
[1743538585455,50.66064692,126.52,126.51,0.063]
[1743538585661,50.66064692,126.52,126.48,0.063]
[1743538585662,7.9051,126.5,126.48,0.063]
[1743538585860,15.62757492,126.49,126.48,0.063]
[1743538586390,17.52669806,126.49,126.48,0.063]
[1743538586764,116.87634692,126.49,126.48,0.063]
[1743538586963,98.6866466,126.49,126.48,0.063]
[1743538587695,8.19062314,126.48,126.43,0.063]
[1743538587904,24.40383839,126.45,126.43,0.063]
[1743538591003,24.40383839,126.44,126.43,0.063]
[1743538591908,24.40383839,126.45,126.43,0.063]
[1743538593285,24.40383839,126.46,126.43,0.063]
[1743538599103,24.40383839,126.45,126.43,0.063]
[1743538602898,24.40383839,126.44,126.43,0.063]
[1743538607413,32.31263839,126.44,126.43,0.063]
[1743538607616,34.26236153,126.44,126.43,0.063]
[1743538607794,25.48485534,126.44,126.43,0.063]
[1743538609400,59.7608364,126.44,126.43,0.063]
[1743538609603,44.1345042,126.44,126.43,0.063]
[1743538609915,112.757333,126.44,126.43,0.063]
[1743538611218,20.28432314,126.4,126.39,0.063]
[1743538611433,64.1370042,126.4,126.39,0.063]
[1743538611637,70.1939042,126.4,126.39,0.063]
[1743538619454,70.1939042,126.4,126.38,0.063]
[1743538619455,18.64964886,126.39,126.38,0.063]
[1743538619652,42.18798106,126.39,126.38,0.063]
[1743538620447,80.98432314,126.38,126.37,0.063]
[1743538620644,80.98432314,126.38,126.31,7.917]
[1743538620645,0.28432314,126.36,126.31,7.917]
[1743538620834,15.91065534,126.36,126.31,7.917]
[1743538621047,98.702733,126.36,126.3,0.063]
[1743538621961,106.616533,126.36,126.3,0.063]
[1743538624362,44.1112042,126.36,126.3,0.063]
[1743538626967,106.616533,126.36,126.3,0.063]
[1743538632868,15.6263322,126.31,126.3,0.063]
[1743538633170,23.5433322,126.31,126.3,0.063]
[1743538633556,23.82765534,126.31,126.3,0.063]
[1743538634369,123.1773042,126.31,126.3,0.063]
[1743538634574,187.277833,126.31,126.3,0.063]
[1743538634867,42.4798042,126.27,126.26,0.063]
[1743538635068,49.4198042,126.27,126.26,0.063]
[1743538636569,49.4198042,126.27,126.24,0.063]
[1743538636570,26.627072,126.26,126.24,0.063]
[1743538636873,15.91065534,126.25,126.24,0.063]
[1743538637072,0.28432314,126.24,126.22,0.063]
[1743538637257,34.5603042,126.23,126.22,0.063]
[1743538637587,41.5003042,126.23,126.22,0.063]
[1743538638566,18.933972,126.22,126.17,0.03]
[1743538638755,15.91065534,126.18,126.17,0.03]
[1743538638962,15.6263322,126.18,126.17,0.03]
[1743538639471,96.3263322,126.18,126.17,0.03]
[1743538639675,105.20832222,126.18,126.17,0.03]
[1743538640558,124.14229422,126.18,126.17,0.03]
[1743538641274,105.20832222,126.18,126.17,0.03]
[1743538641654,24.50832222,126.18,126.17,0.03]
[1743538641860,24.50832222,126.19,126.17,0.03]
[1743538643383,24.50832222,126.18,126.17,0.03]
[1743538644081,24.50832222,126.19,126.17,0.03]
[1743538646066,24.50832222,126.18,126.17,0.03]
[1743538649473,7.9234,126.21,126.17,0.03]
[1743538649675,24.50832222,126.18,126.17,0.03]
[1743538651694,24.50832222,126.19,126.17,0.03]
[1743538657101,24.50832222,126.18,126.17,0.03]
[1743538658066,24.50832222,126.21,126.17,0.03]
[1743538658279,80.7,126.22,126.17,0.03]
[1743538658487,80.7,126.22,126.17,6.0913]
[1743538658697,105.20832222,126.22,126.17,6.0913]
[1743538658996,24.50832222,126.21,126.17,6.0913]
[1743538659195,24.50832222,126.2,126.17,0.03]
[1743538661699,15.67873704,126.2,126.17,0.03]
[1743538672219,15.67873704,126.21,126.17,0.03]
[1743538675244,88.52336157,126.26,126.18,26.88]
[1743538675407,15.67873704,126.24,126.18,26.88]
[1743538676332,15.67873704,126.24,126.19,27.7358]
[1743538679056,96.44356157,126.26,126.19,27.7358]
[1743538679539,15.67873704,126.24,126.19,27.7358]
[1743538680039,15.67873704,126.25,126.19,29.2375]
[1743538681231,87.37576157,126.29,126.2,18.64964886]
[1743538681420,87.37576157,126.29,126.23,20.0]
[1743538681421,80.7,126.29,126.23,20.0]
[1743538681735,17.25043704,126.3,126.24,6.88]
[1743538681927,15.67873704,126.29,126.24,6.88]
[1743538682717,15.67873704,126.29,126.25,7.9207]
[1743538683234,17.25043704,126.3,126.25,7.9207]
[1743538683834,88.90092314,126.32,126.25,7.9207]
[1743538684131,15.67873704,126.31,126.25,7.9207]
[1743538684722,23.59583704,126.31,126.25,7.9207]
[1743538685535,80.7,126.32,126.25,7.9207]
[1743538685836,96.37873704,126.32,126.25,27.7226]
[1743538686224,0.063,126.29,126.25,27.7226]
[1743538686836,0.063,126.29,126.26,18.64964886]
[1743538688136,0.063,126.29,126.25,7.9207]
[1743538689531,0.063,126.29,126.25,27.7226]
[1743538695121,15.67873704,126.28,126.25,7.9207]
[1743538695340,15.67873704,126.28,126.24,7.9214]
[1743538698854,15.74173704,126.29,126.24,7.9214]
[1743538699146,15.74173704,126.29,126.24,27.7249]
[1743538699731,0.063,126.29,126.24,27.7249]
[1743538700660,0.063,126.29,126.25,6.86]
[1743538701344,0.063,126.29,126.26,27.7205]
[1743538702638,0.063,126.29,126.26,7.9201]
[1743538703662,0.063,126.29,126.24,27.7244]
[1743538709957,0.063,126.29,126.24,7.9214]
[1743538710160,17.32523704,126.28,126.24,7.9214]
[1743538712363,15.67873704,126.27,126.24,7.9214]
[1743538712671,17.32523704,126.28,126.24,7.9214]
[1743538713985,15.67873704,126.27,126.23,228.18]
[1743538714142,15.67873704,126.26,126.23,228.18]
[1743538715270,15.67873704,126.26,126.23,236.1019]
[1743538715564,15.67873704,126.26,126.23,7.9219]
[1743538717350,15.67873704,126.26,126.21,27.7315]
[1743538720470,15.67873704,126.26,126.22,0.03]
[1743538721264,15.67873704,126.27,126.22,0.03]
[1743538721671,15.67873704,126.26,126.22,0.03]
[1743538723258,23.59843704,126.27,126.22,0.03]
[1743538723848,15.67873704,126.27,126.22,0.03]
[1743538726370,15.67873704,126.25,126.22,0.03]
[1743538726780,15.67873704,126.23,126.22,0.03]
[1743538727074,23.88506018,126.23,126.22,0.03]
[1743538727780,0.28432314,126.22,126.18,228.08]
[1743538728089,15.67873704,126.19,126.18,228.08]
[1743538728262,15.67873704,126.19,126.17,0.03]
[1743538728470,15.67873704,126.18,126.17,0.03]
[1743538729559,23.60383704,126.18,126.17,0.03]
[1743538729759,30.19863704,126.18,126.17,0.03]
[1743538732561,22.27353704,126.18,126.17,0.03]
[1743538732955,6.5948,126.18,126.17,0.03]
[1743538733183,22.27353704,126.18,126.17,0.03]
[1743538735078,30.19863704,126.18,126.17,0.03]
[1743538738086,22.27353704,126.18,126.17,0.03]
[1743538738386,15.67873704,126.18,126.17,0.03]
[1743538739996,23.60383704,126.18,126.17,0.03]
[1743538747603,86.60310834,126.18,126.17,0.03]
[1743538749007,0.28432314,126.16,126.12,0.03]
[1743538749182,15.67873704,126.13,126.12,0.03]
[1743538749384,15.67873704,126.14,126.12,0.03]
[1743538753909,23.60643704,126.14,126.12,0.03]
[1743538754112,15.67873704,126.13,126.12,0.03]
[1743538755909,23.60703704,126.13,126.12,0.03]
[1743538756308,15.67873704,126.13,126.12,0.03]
[1743538756610,23.60663704,126.14,126.12,0.03]
[1743538757110,23.60613704,126.15,126.12,0.03]
[1743538758019,7.9274,126.15,126.12,0.03]
[1743538758191,23.60613704,126.15,126.12,0.03]
[1743538759208,15.67873704,126.14,126.12,0.03]
[1743538760009,15.67873704,126.15,126.12,0.03]
[1743538762617,15.67873704,126.14,126.12,0.03]
[1743538767712,80.7,126.16,126.12,20.03]
[1743538767891,15.67873704,126.18,126.12,20.03]
[1743538768616,0.063,126.17,126.12,20.03]
[1743538769005,0.063,126.17,126.13,7.9283]
[1743538770106,15.74173704,126.17,126.13,7.9283]
[1743538772028,15.67873704,126.15,126.12,27.9586]
[1743538772213,15.67873704,126.14,126.12,27.9586]
[1743538773119,15.67873704,126.15,126.12,27.9586]
[1743538775821,15.67873704,126.14,126.12,7.9586]
[1743538776124,15.67873704,126.14,126.12,0.03]
[1743538779323,15.67873704,126.13,126.12,0.03]
[1743538784029,104.59136018,126.13,126.12,0.03]
[1743538784410,123.24100904,126.13,126.12,0.03]
[1743538784620,185.9559572,126.13,126.12,0.03]
[1743538785331,192.8359572,126.13,126.12,0.03]
[1743538788723,112.1359572,126.13,126.12,0.03]
[1743538794737,184.0359572,126.13,126.12,0.03]
[1743538799247,184.0359572,126.13,126.12,0.0001]
[1743538799444,18.933972,126.08,126.07,0.0001]
[1743538799749,18.933972,126.06,126.02,0.03]
[1743538799949,97.3276572,126.06,126.02,0.03]
[1743538800448,97.3276572,126.06,126.05,0.0001]
[1743538800626,80.98432314,126.05,126.04,0.0001]
[1743538800826,17.48336018,126.05,126.04,0.0001]
[1743538801332,25.41666018,126.05,126.04,0.0001]
[1743538801539,44.06630904,126.05,126.04,0.0001]
[1743538802542,63.89960904,126.05,126.02,0.0001]
[1743538802759,34.3283859,126.03,126.02,0.0001]
[1743538803527,42.2629859,126.03,126.02,0.0001]
[1743538805237,42.54730904,126.03,126.02,0.0001]
[1743538805558,0.28432314,125.99,125.98,0.0001]
[1743538805843,15.96306018,125.99,125.98,0.0001]
[1743538807145,34.61270904,125.99,125.98,0.0001]
[1743538807531,42.54980904,125.99,125.98,0.0001]
[1743538807736,0.28432314,125.97,125.92,1.5317]
[1743538807939,15.67873704,125.94,125.92,1.5317]
[1743538809745,15.67873704,125.95,125.92,1.5317]
[1743538809947,88.92282314,125.97,125.91,6.0717]
[1743538809948,15.67873704,125.94,125.91,6.0717]
[1743538810133,15.67873704,125.93,125.91,6.0717]
[1743538810339,15.67873704,125.94,125.91,6.0717]
[1743538811235,15.67873704,125.96,125.91,6.0717]
[1743538811435,15.67873704,125.96,125.91,4.0717]
[1743538813032,15.67873704,125.95,125.92,20.0]
[1743538813446,15.67873704,125.96,125.92,20.0]
[1743538814134,96.37873704,125.97,125.92,20.0]
[1743538814334,80.7,125.99,125.94,20.0]
[1743538814531,15.67873704,125.98,125.94,20.0]
[1743538814735,80.7,125.99,125.94,20.0]
[1743538814932,96.37873704,125.99,125.94,20.0]
[1743538816065,15.67873704,125.98,125.94,27.9402]
[1743538816662,96.37873704,125.99,125.94,27.9402]
[1743538816955,15.67873704,126.0,125.94,27.9402]
[1743538817861,96.37873704,126.02,125.96,1.5025]
[1743538818359,0.063,126.03,125.97,7.9383]
[1743538819052,15.74173704,126.03,125.97,7.9383]
[1743538819851,15.67873704,126.02,125.97,7.9383]
[1743538820371,15.67873704,126.01,125.96,238.0611]
[1743538820542,15.67873704,126.0,125.96,238.0611]
[1743538820969,15.67873704,125.99,125.96,230.1225]
[1743538821574,9.66066157,126.03,125.96,238.0614]
[1743538821870,15.67873704,126.0,125.96,238.0614]
[1743538822566,15.67873704,126.01,125.96,238.0614]
[1743538822774,15.67873704,126.02,125.96,238.0614]
[1743538823677,15.67873704,126.02,125.96,257.9089]
[1743538823844,15.67873704,126.01,125.96,257.9089]
[1743538824947,15.67873704,126.02,125.96,257.9089]
[1743538825349,15.67873704,126.01,125.96,257.9089]
[1743538825882,15.67873704,126.0,125.96,238.0614]
[1743538826372,15.67873704,126.01,125.96,238.0614]
[1743538826952,15.67873704,126.02,125.96,238.0614]
[1743538827486,15.74173704,126.02,125.96,238.0614]
[1743538827661,15.74173704,126.02,125.96,257.9089]
[1743538827973,15.74173704,126.02,125.98,7.9377]
[1743538828777,0.063,126.02,125.98,7.9377]
[1743538829674,0.063,126.02,125.98,27.7821]
[1743538830689,0.063,126.02,125.98,19.8444]
[1743538833897,0.063,126.02,125.97,7.9383]
[1743538834193,15.74173704,126.02,125.97,26.58794886]
[1743538835899,0.063,126.02,125.97,26.58794886]
[1743538836073,15.67873704,126.01,125.97,7.9383]
[1743538837105,15.74173704,126.02,125.97,7.9383]
[1743538841401,0.063,126.02,125.97,27.7842]
[1743538842392,15.74173704,126.02,125.97,27.7842]
[1743538844306,0.063,126.02,125.97,27.7842]
[1743538845191,0.063,126.02,125.98,18.64964886]
[1743538845979,0.063,126.02,126.01,27.9358]
[1743538846806,0.063,126.03,126.01,52.82964886]
[1743538847008,80.7,126.11,126.05,20.0]
[1743538847187,17.29153704,126.12,126.06,6.88]
[1743538847382,25.22063704,126.12,126.06,6.88]
[1743538847587,15.67873704,126.11,126.06,6.88]
[1743538848193,15.67873704,126.11,126.07,7.9321]
[1743538849112,15.67873704,126.11,126.06,14.8123]
[1743538849906,15.67873704,126.1,126.06,6.88]
[1743538850411,23.60923704,126.1,126.06,6.88]
[1743538850904,15.67873704,126.09,126.06,20.0]
[1743538851708,15.67873704,126.09,126.04,7.9336]
[1743538852582,23.60973704,126.09,126.04,7.9336]
[1743538854605,15.67873704,126.08,126.03,14.8143]
[1743538855701,23.61033704,126.08,126.03,14.8143]
[1743538856079,7.9316,126.08,126.03,14.8143]
[1743538857081,15.67873704,126.08,126.03,14.8143]
[1743538859392,15.67873704,126.08,126.03,7.9343]
[1743538860442,23.61003704,126.09,126.03,7.9343]
[1743538861525,104.30853704,126.11,126.04,18.64964886]
[1743538861717,80.7,126.11,126.04,18.64964886]
[1743538862536,88.6298,126.11,126.04,18.64964886]
[1743538862712,104.30853704,126.11,126.04,18.64964886]
[1743538863037,104.30853704,126.11,126.05,7.9333]
[1743538863735,104.37153704,126.11,126.05,7.9333]
[1743538864542,104.37153704,126.11,126.05,27.7666]
[1743538864725,0.063,126.11,126.06,25.52964886]
[1743538864927,0.063,126.11,126.07,27.7623]
[1743538866307,0.063,126.11,126.07,7.9321]
[1743538866500,15.74173704,126.11,126.06,14.8123]
[1743538866693,0.063,126.11,126.06,14.8123]
[1743538866922,0.063,126.11,126.06,34.6441]
[1743538867716,0.063,126.11,126.06,14.8123]
[1743538868091,0.063,126.11,126.06,34.6441]
[1743538869530,0.063,126.11,126.09,20.0]
[1743538871530,0.063,126.11,126.1,7.9302]
[1743538872717,0.063,126.11,126.07,7.9321]
[1743538872909,15.74173704,126.11,126.06,14.8123]
[1743538873102,15.67873704,126.08,126.04,228.44]
[1743538873717,15.67873704,126.08,126.04,236.3739]
[1743538874095,15.67873704,126.08,126.04,7.9339]
[1743538874814,15.67873704,126.07,126.02,7.9352]
[1743538875006,15.67873704,126.06,126.02,7.9352]
[1743538875410,15.67873704,126.06,126.03,0.03]
[1743538875723,24.55291767,126.07,126.03,0.03]
[1743538880217,24.55291767,126.08,126.03,0.03]
[1743538882219,24.55291767,126.09,126.03,0.03]
[1743538883925,24.55291767,126.1,126.03,0.03]
[1743538885207,24.55291767,126.09,126.03,0.03]
[1743538887002,24.55291767,126.09,126.05,20.0]
[1743538887727,24.61591767,126.09,126.05,20.0]
[1743538889105,24.61591767,126.09,126.06,7.9327]
[1743538890230,0.063,126.09,126.06,7.9327]
[1743538891831,112.02191767,126.11,126.06,7.9327]
[1743538892027,87.469,126.11,126.06,27.7645]
[1743538892336,80.11222314,126.14,126.06,27.7645]
[1743538892337,24.55291767,126.13,126.06,27.7645]
[1743538894637,6.3182,126.14,126.06,27.7645]
[1743538894845,24.55291767,126.11,126.06,27.7645]
[1743538896740,24.55291767,126.1,126.06,7.9327]
[1743538897150,24.55291767,126.09,126.06,7.9327]
[1743538897748,15.70728033,126.09,126.06,7.9327]
[1743538898732,23.63838033,126.09,126.05,27.933]
[1743538899045,23.63838033,126.09,126.05,20.0]
[1743538899752,23.63838033,126.09,126.05,27.9333]
[1743538903148,15.70728033,126.09,126.05,27.9333]
[1743538909047,15.70728033,126.1,126.05,27.9333]
[1743538909367,15.70728033,126.11,126.05,27.9333]
[1743538909670,17.35908033,126.13,126.07,27.7623]
[1743538910040,25.28748033,126.13,126.07,27.7623]
[1743538910842,15.70728033,126.12,126.07,27.7623]
[1743538911166,17.35908033,126.13,126.07,27.7623]
[1743538912771,0.063,126.11,126.07,27.7623]
[1743538914561,15.77028033,126.11,126.07,7.9321]
[1743538914767,15.70728033,126.1,126.06,14.8124]
[1743538915064,15.70728033,126.1,126.06,7.9324]
[1743538915255,15.70728033,126.09,126.05,0.03]
[1743538915457,15.70728033,126.09,126.05,7.9633]
[1743538916668,23.63808033,126.09,126.05,0.03]
[1743538917463,15.70728033,126.09,126.05,0.03]
[1743538917764,15.70728033,126.1,126.05,0.03]
[1743538919660,23.63758033,126.1,126.05,0.03]
[1743538920667,0.063,126.11,126.05,0.03]
[1743538920867,15.70728033,126.1,126.05,0.03]
[1743538928479,23.63748033,126.1,126.05,0.03]
[1743538931791,15.70728033,126.1,126.05,0.03]